fUST/lending_fUST_20250617
["ID","MTS","AMOUNT","RATE_DAILY","PERIOD"]
[366214153,1750126239116,-915.971813,0.00024293,7]
[366214154,1750126239126,-151.0,0.00024293,7]
[366214155,1750126239136,-211.84324253,0.00024313,2]
[366214156,1750126239146,-464.10445723,0.00024321,2]
[366214157,1750126239156,-297.282437,0.00024321,7]
[366214158,1750126239166,-151.0,0.00024333,7]
[366214159,1750126239175,-165.179271,0.00024333,7]
[366214160,1750126239185,-165.179271,0.00024333,7]
[366214161,1750126239195,-151.0,0.00024333,7]
[366214162,1750126239204,-151.0,0.00024333,7]
[366214163,1750126239214,-253.025525,0.00024333,7]
[366214164,1750126239224,-521.20253454,0.00024333,2]
[366214165,1750126239233,-800.44754192,0.00024338,2]
[366214166,1750126239243,-1014.40793808,0.00024368,2]
[366214167,1750126239254,-6384.38645562,0.00024386,2]
[366214168,1750126239264,-374.585705,0.00024432,3]
[366214169,1750126239274,-214.0953081,0.00024466,7]
[366214170,1750126239284,-211.84324253,0.00024499,2]
[366214171,1750126239294,-3887.5629492,0.000245,7]
[366214172,1750126239304,-2094.2911907,0.000245,7]
[366214173,1750126239314,-294.367494,0.000245,7]
[366214174,1750126239324,-151.0,0.000245,7]
[366214175,1750126239334,-151.0,0.000245,7]
[366214176,1750126239344,-500.0,0.000245,2]
[366214177,1750126239353,-168.163787,0.000245,7]
[366214178,1750126239363,-168.163787,0.000245,7]
[366214179,1750126239373,-257.874067,0.000245,7]
[366214180,1750126239382,-257.874067,0.000245,7]
[366214181,1750126239392,-155.044954,0.000245,7]
[366214182,1750126239402,-155.044954,0.000245,7]
[366214183,1750126239411,-915.971813,0.000245,7]
[366214184,1750126239420,-915.971813,0.000245,7]
[366214185,1750126239430,-151.0,0.000245,7]
[366214186,1750126239439,-508.10375771,0.00024521,2]
[366214187,1750126239449,-1000.0,0.00024521,2]
[366214188,1750126239458,-507.99534356,0.00024521,2]
[366214189,1750126239468,-611.37154226,0.00024521,2]
[366214190,1750126239477,-800.44754192,0.00024555,2]
[366214191,1750126239487,-283.40849503,0.00024555,3]
[366214192,1750126239497,-151.0,0.00024576,7]
[366214194,1750126239506,-152.096665,0.0002459,7]
[366214195,1750126239516,-168.0,0.00024599,2]
[366214196,1750126239526,-3730.97,0.00024654,2]
[366214197,1750126239536,-443263.70518454,0.00024655,15]
[366214198,1750126239546,-151.0,0.00024655,7]
[366214200,1750126239555,-168.163787,0.00024655,7]
[366214201,1750126239565,-168.163787,0.00024655,7]
[366214202,1750126239575,-257.874067,0.00024655,7]
[366214203,1750126239584,-257.874067,0.00024655,7]
[366214204,1750126239594,-155.044954,0.00024655,7]
[366214205,1750126239604,-155.044954,0.00024655,7]
[366214207,1750126239613,-915.971813,0.00024655,7]
[366214208,1750126239623,-915.971813,0.00024655,7]
[366214209,1750126239633,-151.0,0.00024655,7]
[366214210,1750126239643,-151.0,0.00024657,7]
[366214211,1750126239652,-151.0,0.00024657,7]
[366214213,1750126239662,-151.0,0.00024657,7]
[366214215,1750126239675,-151.0,0.00024657,7]
[366214216,1750126239685,-234.827056,0.00024657,7]
[366214217,1750126239694,-151.0,0.00024657,7]
[366214218,1750126239704,-151.0,0.00024657,7]
[366214219,1750126239715,-151.0,0.00024657,7]
[366214220,1750126239724,-151.0,0.00024657,7]
[366214221,1750126239733,-151.0,0.00024657,7]
[366214222,1750126239744,-163.455046,0.00024657,7]
[366214223,1750126239754,-251.381809,0.00024657,7]
[366214224,1750126239764,-165.179271,0.00024657,7]
[366214226,1750126239774,-165.179271,0.00024657,7]
[366214228,1750126239783,-165.179271,0.00024657,7]
[366214229,1750126239792,-165.179271,0.00024657,7]
[366214230,1750126239802,-165.179271,0.00024657,7]
[366214231,1750126239811,-165.179271,0.00024657,7]
[366214233,1750126239821,-165.179271,0.00024657,7]
[366214234,1750126239830,-165.179271,0.00024657,7]
[366214235,1750126239839,-165.179271,0.00024657,7]
[366214236,1750126239849,-165.179271,0.00024657,7]
[366214237,1750126239858,-165.179271,0.00024657,7]
[366214238,1750126239868,-165.179269,0.00024657,7]
[366214239,1750126239878,-158.695515,0.00024657,7]
[366214240,1750126239887,-592.81226573,0.00024657,6]
[366214241,1750126239896,-516.94640837,0.00024657,7]
[366214242,1750126239906,-417.2979077,0.00024657,6]
[366214243,1750126239915,-460.0,0.00024657,6]
[366214244,1750126239925,-526.48777752,0.00024657,6]
[366214246,1750126239934,-460.0,0.00024657,6]
[366214248,1750126239944,-460.0,0.00024657,6]
[366214249,1750126239954,-460.0,0.00024657,6]
[366214251,1750126239963,-460.0,0.00024657,6]
[366214253,1750126239973,-460.0,0.00024657,6]
[366214255,1750126239982,-460.0,0.00024657,6]
[366214257,1750126239993,-460.0,0.00024657,6]
[366214259,1750126240002,-166.89101002,0.00024657,6]
[366214261,1750126240014,-460.0,0.00024657,6]
[366214264,1750126240028,-478.85388198,0.00024657,6]
[366214266,1750126240042,-600.0,0.00024657,6]
[366214269,1750126240056,-151.0,0.00024657,7]
[366214271,1750126240070,-460.0,0.00024657,6]
[366214273,1750126240081,-460.0,0.00024657,6]
[366214275,1750126240093,-460.0,0.00024657,6]
[366214277,1750126240106,-460.0,0.00024657,6]
[366214279,1750126240120,-318.87694228,0.00024657,6]
[366214281,1750126240132,-429.50299949,0.00024657,6]
[366214284,1750126240145,-168.163787,0.00024657,7]
[366214286,1750126240159,-168.163789,0.00024657,7]
[366214288,1750126240174,-427.82461983,0.00024657,6]
[366214291,1750126240187,-460.0,0.00024657,6]
[366214293,1750126240200,-460.0,0.00024657,6]
[366214295,1750126240213,-460.0,0.00024657,6]
[366214298,1750126240227,-460.0,0.00024657,6]
[366214300,1750126240240,-460.0,0.00024657,6]
[366214302,1750126240252,-460.0,0.00024657,6]
[366214304,1750126240264,-460.0,0.00024657,6]
[366214306,1750126240277,-460.0,0.00024657,6]
[366214308,1750126240289,-351.55692138,0.00024657,6]
[366214311,1750126240302,-434.12822346,0.00024657,6]
[366214313,1750126240315,-425.78130578,0.00024657,6]
[366214315,1750126240328,-209.08111051,0.00024657,6]
[366214317,1750126240340,-273.10019851,0.00024657,6]
[366214320,1750126240353,-460.0,0.00024657,6]
[366214322,1750126240365,-460.0,0.00024657,6]
[366214324,1750126240376,-460.0,0.00024657,6]
[366214326,1750126240387,-323.86866439,0.00024657,6]
[366214328,1750126240401,-400.36776778,0.00024657,6]
[366214330,1750126240411,-460.0,0.00024657,6]
[366214333,1750126240424,-489.10640052,0.00024657,6]
[366214335,1750126240437,-359.20174956,0.00024657,6]
[366214337,1750126240450,-460.0,0.00024657,6]
[366214340,1750126240463,-488.71128935,0.00024657,6]
[366214342,1750126240476,-257.874067,0.00024657,7]
[366214344,1750126240490,-257.874065,0.00024657,7]
[366214347,1750126240504,-466.02344442,0.00024657,6]
[366214349,1750126240518,-460.0,0.00024657,6]
[366214351,1750126240531,-342.30135903,0.00024657,6]
[366214353,1750126240544,-468.35225967,0.00024657,6]
[366214354,1750126240556,-460.0,0.00024657,6]
[366214355,1750126240567,-460.0,0.00024657,6]
[366214356,1750126240577,-460.0,0.00024657,6]
[366214357,1750126240588,-460.0,0.00024657,6]
[366214358,1750126240600,-460.0,0.00024657,6]
[366214359,1750126240613,-460.0,0.00024657,6]
[366214360,1750126240628,-460.0,0.00024657,6]
[366214361,1750126240641,-460.0,0.00024657,6]
[366214362,1750126240654,-460.0,0.00024657,6]
[366214363,1750126240664,-460.0,0.00024657,6]
[366214364,1750126240678,-460.0,0.00024657,6]
[366214365,1750126240689,-460.0,0.00024657,6]
[366214367,1750126240701,-460.0,0.00024657,6]
[366214370,1750126240716,-460.0,0.00024657,6]
[366214372,1750126240729,-460.0,0.00024657,6]
[366214374,1750126240741,-460.0,0.00024657,6]
[366214376,1750126240752,-460.0,0.00024657,6]
[366214378,1750126240763,-169.36558659,0.00024657,6]
[366214607,1750126243003,-328.82730535,0.00023611,2]
[366214609,1750126243013,-500.0,0.00023611,2]
[366214611,1750126243022,-500.0,0.00023611,2]
[366214613,1750126243031,-500.0,0.00023611,2]
[366214615,1750126243041,-500.0,0.00023611,2]
[366214617,1750126243050,-500.0,0.00023611,2]
[366214619,1750126243059,-500.0,0.00023611,2]
[366214621,1750126243068,-500.0,0.00023611,2]
[366214623,1750126243077,-500.0,0.00023611,2]
[366214625,1750126243087,-500.0,0.00023611,2]
[366214627,1750126243096,-500.0,0.00023611,2]
[366214629,1750126243106,-500.0,0.00023611,2]
[366214631,1750126243115,-500.0,0.00023611,2]
[366214633,1750126243126,-500.0,0.00023611,2]
[366214635,1750126243135,-500.0,0.00023611,2]
[366214637,1750126243144,-500.0,0.00023611,2]
[366214639,1750126243154,-500.0,0.00023611,2]
[366214641,1750126243163,-500.0,0.00023611,2]
[366214643,1750126243172,-500.0,0.00023611,2]
[366214645,1750126243181,-500.0,0.00023611,2]
[366214648,1750126243191,-514.73725956,0.00024657,2]
[366214651,1750126243201,-460.0,0.00024657,6]
[366214653,1750126243210,-485.03197491,0.00024657,6]
[366214655,1750126243219,-460.0,0.00024657,6]
[366214657,1750126243229,-460.0,0.00024657,6]
[366214660,1750126243239,-460.0,0.00024657,6]
[366214662,1750126243248,-460.0,0.00024657,6]
[366214664,1750126243257,-274.37307313,0.00024657,6]
[366214666,1750126243269,-185.62692687,0.00024657,6]
[366214668,1750126243279,-460.0,0.00024657,6]
[366214670,1750126243288,-460.0,0.00024657,6]
[366214672,1750126243298,-421.90881761,0.00024657,6]
[366214674,1750126243307,-460.0,0.00024657,6]
[366214676,1750126243315,-460.0,0.00024657,6]
[366214678,1750126243325,-460.0,0.00024657,6]
[366214680,1750126243334,-460.0,0.00024657,6]
[366214682,1750126243343,-460.0,0.00024657,6]
[366214684,1750126243352,-460.0,0.00024657,6]
[366214686,1750126243361,-460.0,0.00024657,6]
[366214688,1750126243370,-460.0,0.00024657,6]
[366214690,1750126243380,-460.0,0.00024657,6]
[366214692,1750126243389,-296.79510548,0.00024657,6]
[366214694,1750126243399,-460.0,0.00024657,6]
[366214696,1750126243408,-460.0,0.00024657,6]
[366214698,1750126243418,-460.0,0.00024657,6]
[366214700,1750126243427,-460.0,0.00024657,6]
[366214702,1750126243436,-460.0,0.00024657,6]
[366214704,1750126243445,-460.0,0.00024657,6]
[366214706,1750126243454,-393.22511276,0.00024657,6]
[366214708,1750126243464,-460.0,0.00024657,6]
[366214710,1750126243473,-460.0,0.00024657,6]
[366214711,1750126243482,-460.0,0.00024657,6]
[366214713,1750126243491,-460.0,0.00024657,6]
[366214715,1750126243501,-460.0,0.00024657,6]
[366214717,1750126243511,-460.0,0.00024657,6]
[366214719,1750126243520,-406.06045577,0.00024657,6]
[366214721,1750126243530,-460.0,0.00024657,6]
[366214725,1750126243552,-460.0,0.00024657,6]
[366214727,1750126243563,-460.0,0.00024657,6]
[366214729,1750126243573,-460.0,0.00024657,6]
[366214731,1750126243583,-460.0,0.00024657,6]
[366214733,1750126243594,-460.0,0.00024657,6]
[366214735,1750126243604,-460.0,0.00024657,6]
[366214737,1750126243616,-460.0,0.00024657,6]
[366214739,1750126243626,-460.0,0.00024657,6]
[366214741,1750126243637,-497.7733207,0.00024657,6]
[366214743,1750126243647,-1160.81,0.00024657,6]
[366214745,1750126243656,-1160.81,0.00024657,6]
[366214748,1750126243670,-1160.81,0.00024657,6]
[366214750,1750126243680,-1160.81,0.00024657,6]
[366214752,1750126243690,-1160.81,0.00024657,6]
[366214754,1750126243700,-1160.81,0.00024657,6]
[366214756,1750126243711,-1160.81,0.00024657,6]
[366214758,1750126243721,-1160.81,0.00024657,6]
[366214760,1750126243731,-1160.81,0.00024657,6]
[366214762,1750126243742,-1160.81,0.00024657,6]
[366214764,1750126243752,-1160.81,0.00024657,6]
[366214766,1750126243762,-1160.81,0.00024657,6]
[366214768,1750126243772,-473.55543126,0.00024657,6]
[366214770,1750126243782,-1160.81,0.00024657,6]
[366214772,1750126243792,-1160.81,0.00024657,6]
[366214774,1750126243802,-1160.81,0.00024657,6]
[366214776,1750126243813,-1160.81,0.00024657,6]
[366214778,1750126243823,-1160.81,0.00024657,6]
[366214780,1750126243834,-1160.81,0.00024657,6]
[366214782,1750126243844,-1160.81,0.00024657,6]
[366214784,1750126243854,-1160.81,0.00024657,6]
[366214786,1750126243864,-1160.81,0.00024657,6]
[366214788,1750126243874,-1160.81,0.00024657,6]
[366214790,1750126243883,-1160.81,0.00024657,6]
[366214792,1750126243893,-1160.81867392,0.00024657,6]
[366214794,1750126243904,-460.0,0.00024657,6]
[366214796,1750126243914,-460.0,0.00024657,6]
[366214798,1750126243924,-460.0,0.00024657,6]
[366214800,1750126243934,-460.0,0.00024657,6]
[366214802,1750126243944,-460.0,0.00024657,6]
[366214804,1750126243953,-460.0,0.00024657,6]
[366214806,1750126243963,-460.0,0.00024657,6]
[366214808,1750126243973,-460.0,0.00024657,6]
[366214810,1750126243983,-460.0,0.00024657,6]
[366214812,1750126243992,-460.0,0.00024657,6]
[366214814,1750126244003,-460.0,0.00024657,6]
[366214817,1750126244014,-460.0,0.00024657,6]
[366214819,1750126244026,-460.0,0.00024657,6]
[366214821,1750126244036,-460.0,0.00024657,6]
[366214823,1750126244046,-460.0,0.00024657,6]
[366214825,1750126244055,-460.0,0.00024657,6]
[366214827,1750126244065,-460.0,0.00024657,6]
[366214829,1750126244075,-460.0,0.00024657,6]
[366214831,1750126244084,-460.0,0.00024657,6]
[366214833,1750126244094,-460.0,0.00024657,6]
[366214835,1750126244104,-460.0,0.00024657,6]
[366214837,1750126244114,-460.0,0.00024657,6]
[366214839,1750126244124,-460.0,0.00024657,6]
[366214841,1750126244133,-466.92680074,0.00024657,6]
[366214843,1750126244143,-460.0,0.00024657,6]
[366214845,1750126244153,-460.0,0.00024657,6]
[366214847,1750126244162,-460.0,0.00024657,6]
[366214849,1750126244177,-460.0,0.00024657,6]
[366214851,1750126244186,-498.69394251,0.00024657,6]
[366214853,1750126244196,-460.0,0.00024657,6]
[366214855,1750126244206,-460.0,0.00024657,6]
[366214857,1750126244217,-460.0,0.00024657,6]
[366214859,1750126244227,-336.32994618,0.00024657,6]
[366214861,1750126244237,-155.044954,0.00024657,7]
[366214863,1750126244248,-460.0,0.00024657,6]
[366214866,1750126244258,-460.0,0.00024657,6]
[366214868,1750126244269,-460.0,0.00024657,6]
[366214870,1750126244279,-460.0,0.00024657,6]
[366214872,1750126244289,-460.0,0.00024657,6]
[366214874,1750126244298,-460.0,0.00024657,6]
[366214876,1750126244308,-460.0,0.00024657,6]
[366214878,1750126244318,-155.044959,0.00024657,7]
[366214880,1750126244331,-460.0,0.00024657,6]
[366214882,1750126244343,-460.0,0.00024657,6]
[366214884,1750126244363,-460.0,0.00024657,6]
[366214886,1750126244373,-460.0,0.00024657,6]
[366214888,1750126244383,-460.0,0.00024657,6]
[366214890,1750126244392,-514.64060074,0.00024657,6]
[366214892,1750126244402,-505.77824625,0.00024657,6]
[366214893,1750126244411,-460.0,0.00024657,6]
[366214895,1750126244422,-460.0,0.00024657,6]
[366214898,1750126244432,-460.0,0.00024657,6]
[366214900,1750126244442,-460.0,0.00024657,6]
[366214902,1750126244452,-460.0,0.00024657,6]
[366214904,1750126244461,-460.0,0.00024657,6]
[366214906,1750126244471,-460.0,0.00024657,6]
[366214908,1750126244481,-460.0,0.00024657,6]
[366214910,1750126244491,-265.28523815,0.00024657,6]
[366214912,1750126244502,-168.29215793,0.00024657,6]
[366214914,1750126244512,-460.0,0.00024657,6]
[366214916,1750126244521,-460.0,0.00024657,6]
[366214918,1750126244531,-460.0,0.00024657,6]
[366214920,1750126244542,-460.0,0.00024657,6]
[366214922,1750126244552,-460.0,0.00024657,6]
[366214924,1750126244562,-460.0,0.00024657,6]
[366214926,1750126244572,-460.0,0.00024657,6]
[366214928,1750126244581,-460.0,0.00024657,6]
[366214930,1750126244591,-460.0,0.00024657,6]
[366214932,1750126244601,-460.0,0.00024657,6]
[366214934,1750126244610,-360.0,0.00024657,6]
[366214936,1750126244620,-213.43576364,0.00024657,6]
[366214938,1750126244630,-460.0,0.00024657,6]
[366214940,1750126244640,-460.0,0.00024657,6]
[366214942,1750126244649,-460.0,0.00024657,6]
[366214944,1750126244659,-460.0,0.00024657,6]
[366214946,1750126244671,-460.0,0.00024657,6]
[366214948,1750126244681,-460.0,0.00024657,6]
[366214950,1750126244690,-586.23073786,0.00024657,6]
[366214952,1750126244700,-460.62026765,0.00024657,6]
[366214954,1750126244709,-460.0,0.00024657,6]
[366214956,1750126244720,-492.83306848,0.00024657,6]
[366214958,1750126244729,-460.0,0.00024657,6]
[366214960,1750126244739,-460.0,0.00024657,6]
[366214962,1750126244749,-460.0,0.00024657,6]
[366214963,1750126244759,-460.0,0.00024657,6]
[366214965,1750126244769,-460.0,0.00024657,6]
[366214967,1750126244779,-460.0,0.00024657,6]
[366214969,1750126244788,-460.0,0.00024657,6]
[366214972,1750126244798,-460.0,0.00024657,6]
[366214974,1750126244810,-460.0,0.00024657,6]
[366214976,1750126244819,-460.0,0.00024657,6]
[366214977,1750126244832,-460.0,0.00024657,6]
[366214979,1750126244841,-488.41915788,0.00024657,6]
[366214981,1750126244851,-460.0,0.00024657,6]
[366214983,1750126244860,-460.0,0.00024657,6]
[366214985,1750126244870,-460.0,0.00024657,6]
[366214987,1750126244880,-460.0,0.00024657,6]
[366214989,1750126244889,-460.0,0.00024657,6]
[366214991,1750126244899,-460.0,0.00024657,6]
[366214993,1750126244909,-460.0,0.00024657,6]
[366214994,1750126244918,-270.00151937,0.00024657,6]
[366214995,1750126244928,-460.0,0.00024657,6]
[366214996,1750126244937,-460.0,0.00024657,6]
[366214997,1750126244947,-460.0,0.00024657,6]
[366214998,1750126244956,-460.0,0.00024657,6]
[366214999,1750126244966,-460.0,0.00024657,6]
[366215000,1750126244975,-460.0,0.00024657,6]
[366215001,1750126244985,-460.0,0.00024657,6]
[366215002,1750126244996,-509.04008029,0.00024657,6]
[366215003,1750126245007,-460.0,0.00024657,6]
[366215004,1750126245017,-460.0,0.00024657,6]
[366215005,1750126245026,-460.0,0.00024657,6]
[366215006,1750126245036,-460.0,0.00024657,6]
[366215007,1750126245048,-460.0,0.00024657,6]
[366215008,1750126245059,-460.0,0.00024657,6]
[366215009,1750126245069,-460.0,0.00024657,6]
[366215010,1750126245079,-460.0,0.00024657,6]
[366215011,1750126245089,-460.0,0.00024657,6]
[366215013,1750126245100,-460.0,0.00024657,6]
[366215015,1750126245110,-460.0,0.00024657,6]
[366215017,1750126245119,-585.88600727,0.00024657,6]
[366215019,1750126245129,-915.971813,0.00024657,7]
[366215021,1750126245139,-353.74845714,0.00024657,6]
[366215023,1750126245149,-460.0,0.00024657,6]
[366215025,1750126245159,-460.0,0.00024657,6]
[366215027,1750126245169,-460.0,0.00024657,6]
[366215029,1750126245178,-343.24126209,0.00024657,6]
[366215031,1750126245188,-460.0,0.00024657,6]
[366215033,1750126245197,-460.0,0.00024657,6]
[366215035,1750126245207,-460.0,0.00024657,6]
[366215036,1750126245217,-915.971804,0.00024657,7]
[366215039,1750126245235,-460.0,0.00024657,6]
[366215041,1750126245246,-381.78809684,0.00024657,6]
[366215043,1750126245256,-460.0,0.00024657,6]
[366215045,1750126245266,-460.0,0.00024657,6]
[366215047,1750126245275,-460.0,0.00024657,6]
[366215049,1750126245285,-328.53058724,0.00024657,6]
[366215051,1750126245295,-460.0,0.00024657,6]
[366215053,1750126245305,-460.0,0.00024657,6]
[366215055,1750126245314,-460.0,0.00024657,6]
[366215057,1750126245324,-460.0,0.00024657,6]
[366215059,1750126245333,-460.0,0.00024657,6]
[366215061,1750126245343,-383.7908802,0.00024657,6]
[366215062,1750126245353,-576.33119628,0.00024657,6]
[366215065,1750126245363,-575.23145304,0.00024657,6]
[366215068,1750126245373,-460.0,0.00024657,6]
[366215071,1750126245383,-460.0,0.00024657,6]
[366215074,1750126245392,-459.44384623,0.00024657,6]
[366215077,1750126245402,-460.0,0.00024657,6]
[366215080,1750126245411,-460.0,0.00024657,6]
[366215083,1750126245422,-460.0,0.00024657,6]
[366215086,1750126245432,-460.0,0.00024657,6]
[366215089,1750126245442,-460.0,0.00024657,6]
[366215092,1750126245451,-460.0,0.00024657,6]
[366215096,1750126245461,-460.0,0.00024657,6]
[366215100,1750126245470,-465.15744517,0.00024657,6]
[366215104,1750126245480,-572.61,0.00024657,6]
[366215107,1750126245489,-572.61,0.00024657,6]
[366215111,1750126245499,-572.61,0.00024657,6]
[366215115,1750126245509,-572.61,0.00024657,6]
[366215118,1750126245518,-572.61,0.00024657,6]
[366215121,1750126245530,-572.61,0.00024657,6]
[366215124,1750126245540,-151.0,0.00024657,7]
[366215127,1750126245549,-460.0,0.00024657,6]
[366215130,1750126245559,-572.61,0.00024657,6]
[366215132,1750126245569,-460.0,0.00024657,6]
[366215135,1750126245578,-572.61,0.00024657,6]
[366215138,1750126245588,-460.0,0.00024657,6]
[366215141,1750126245597,-572.61,0.00024657,6]
[366215143,1750126245607,-460.0,0.00024657,6]
[366215145,1750126245618,-572.61,0.00024657,6]
[366215147,1750126245628,-475.80797554,0.00024657,6]
[366215149,1750126245638,-460.0,0.00024657,6]
[366215151,1750126245648,-572.61,0.00024657,6]
[366215153,1750126245657,-460.0,0.00024657,6]
[366215155,1750126245669,-572.61,0.00024657,6]
[366215157,1750126245679,-460.0,0.00024657,6]
[366215159,1750126245688,-572.61,0.00024657,6]
[366215161,1750126245698,-460.0,0.00024657,6]
[366215164,1750126245719,-572.61,0.00024657,6]
[366215166,1750126245731,-460.0,0.00024657,6]
[366215168,1750126245741,-572.61,0.00024657,6]
[366215170,1750126245752,-460.0,0.00024657,6]
[366215172,1750126245763,-572.61,0.00024657,6]
[366215174,1750126245773,-460.0,0.00024657,6]
[366215176,1750126245783,-572.61,0.00024657,6]
[366215178,1750126245794,-460.0,0.00024657,6]
[366215197,1750126245965,-572.61,0.00024657,6]
[366215199,1750126245975,-460.0,0.00024657,6]
[366215201,1750126245984,-460.0,0.00024657,6]
[366215203,1750126245994,-572.61,0.00024657,6]
[366215205,1750126246005,-460.0,0.00024657,6]
[366215207,1750126246015,-460.0,0.00024657,6]
[366215209,1750126246025,-572.61,0.00024657,6]
[366215211,1750126246035,-460.0,0.00024657,6]
[366215213,1750126246044,-532.21223594,0.00024657,6]
[366215215,1750126246054,-572.61,0.00024657,6]
[366215217,1750126246064,-460.0,0.00024657,6]
[366215219,1750126246073,-572.61,0.00024657,6]
[366215221,1750126246083,-572.61,0.00024657,6]
[366215223,1750126246093,-572.67895235,0.00024657,6]
[366215225,1750126246102,-460.0,0.00024657,6]
[366215227,1750126246111,-352.42803111,0.00024657,6]
[366215235,1750126246188,-107.57196889,0.00024657,6]
[366215237,1750126246198,-405.73851222,0.00024657,6]
[366215239,1750126246208,-460.0,0.00024657,6]
[366215241,1750126246217,-463.26785445,0.00024657,6]
[366215243,1750126246226,-460.0,0.00024657,6]
[366215245,1750126246236,-460.0,0.00024657,6]
[366215247,1750126246246,-460.0,0.00024657,6]
[366215249,1750126246256,-460.0,0.00024657,6]
[366215252,1750126246266,-460.0,0.00024657,6]
[366215254,1750126246280,-460.0,0.00024657,6]
[366215256,1750126246290,-460.0,0.00024657,6]
[366215258,1750126246300,-460.0,0.00024657,6]
[366215260,1750126246310,-460.0,0.00024657,6]
[366215262,1750126246320,-460.0,0.00024657,6]
[366215264,1750126246330,-460.0,0.00024657,6]
[366215266,1750126246340,-460.0,0.00024657,6]
[366215268,1750126246350,-460.0,0.00024657,6]
[366215270,1750126246359,-460.0,0.00024657,6]
[366215272,1750126246369,-460.0,0.00024657,6]
[366215274,1750126246379,-460.0,0.00024657,6]
[366215276,1750126246388,-627.71021336,0.00024657,2]
[366216778,1750126505003,174.338606,0.00013699,2]
[366216787,1750127261092,199.91749306,0.000189,2]
[366216788,1750127290279,4735.60293881,0.00024,120]
[366216792,1750127319306,164.05153207,0.0002,30]
[366216793,1750127325280,1159.31884602,0.00024974,120]
[366216794,1750127345150,6908.14924349,0.0002,10]
[366216795,1750127345174,3091.85075651,0.0002,10]
[366216799,1750127390388,6908.14924349,0.0002,2]
[366216800,1750127390412,597.85075651,0.0002,2]
[366216875,1750127432428,-300.0,0.00020999,2]
[366216877,1750127432438,-300.0,0.00020999,2]
[366216878,1750127432448,-1257.07627,0.00021,2]
[366216879,1750127432466,-9544.01817667,0.00021,2]
[366216880,1750127432476,-600.0,0.00021122,2]
[366216881,1750127432486,-1218.86,0.0002136,2]
[366216882,1750127432496,-6970.66319385,0.00021995,2]
[366216883,1750127432506,-911.39808,0.00021999,2]
[366216884,1750127432517,-93516.22013659,0.00022,7]
[366216885,1750127432527,-165.02813863,0.00022084,2]
[366216886,1750127432537,-168.0,0.00022184,2]
[366216887,1750127432547,-243.0,0.00022211,2]
[366216888,1750127432557,-160.0,0.0002235,2]
[366216889,1750127432567,-160.0,0.00022351,2]
[366216890,1750127432576,-160.0,0.00022351,2]
[366216891,1750127432586,-213.39869953,0.00022351,2]
[366216892,1750127432596,-160.0,0.00022351,2]
[366216893,1750127432605,-835.82910252,0.00022351,2]
[366216894,1750127432615,-845.62440851,0.00022351,2]
[366216895,1750127432625,-160.0,0.00022351,2]
[366216896,1750127432635,-229.94211981,0.00022351,2]
[366216897,1750127432644,-424.62582665,0.00022351,2]
[366216898,1750127432654,-160.0,0.00022351,2]
[366216899,1750127432664,-160.0,0.00022353,2]